[Event "*** Titled Tuesday Blitz"]
[Site "Chess.com"]
[Date "2021.03.30"]
[Round "5"]
[White "artichaud"]
[Black "IsaacWiebe"]
[Result "1-0"]
[WhiteElo "2114"]
[BlackElo "2289"]
[TimeControl "180+1"]
[EndTime "10:54:37 PDT"]
[Termination "artichaud won by resignation"]

1. e4 {[%clk 0:02:59.3]} 1... e5 {[%clk 0:03:00]} 2. Nf3 {[%clk 0:02:58.6]} 2...
Nc6 {[%clk 0:03:00.3]} 3. Bb5 {[%clk 0:02:58.1]} 3... a6 {[%clk 0:02:59.3]} 4.
Bxc6 {[%clk 0:02:57.9]} 4... dxc6 {[%clk 0:03:00.2]} 5. d3 {[%clk 0:02:58.5]}
5... Bd6 {[%clk 0:02:56]} 6. Nbd2 {[%clk 0:02:57.7]} 6... f6 {[%clk 0:02:55.3]}
7. Nc4 {[%clk 0:02:57.4]} 7... Ne7 {[%clk 0:02:55.4]} 8. h3 {[%clk 0:02:54.2]}
8... O-O {[%clk 0:02:55.2]} 9. O-O {[%clk 0:02:52.8]} 9... Be6 {[%clk
0:02:55.2]} 10. Nxd6 {[%clk 0:02:46.8]} 10... cxd6 {[%clk 0:02:55.2]} 11. d4
{[%clk 0:02:46.9]} 11... Bf7 {[%clk 0:02:54.8]} 12. Re1 {[%clk 0:02:44]} 12...
Ng6 {[%clk 0:02:54.7]} 13. Be3 {[%clk 0:02:40.1]} 13... Re8 {[%clk 0:02:54.6]}
14. Qd2 {[%clk 0:02:38.9]} 14... Qe7 {[%clk 0:02:51.1]} 15. dxe5 {[%clk
0:02:36.9]} 15... dxe5 {[%clk 0:02:50.9]} 16. Qc3 {[%clk 0:02:32.4]} 16... Red8
{[%clk 0:02:45.5]} 17. Rad1 {[%clk 0:02:29.8]} 17... Rxd1 {[%clk 0:02:44.3]} 18.
Rxd1 {[%clk 0:02:29.2]} 18... Rd8 {[%clk 0:02:45.2]} 19. Rxd8+ {[%clk
0:02:19.6]} 19... Qxd8 {[%clk 0:02:46.1]} 20. Nd2 {[%clk 0:02:17.7]} 20... Nf8
{[%clk 0:01:48.6]} 21. a4 {[%clk 0:02:16.7]} 21... Ne6 {[%clk 0:01:46.5]} 22. a5
{[%clk 0:02:16.4]} 22... Nd4 {[%clk 0:01:38.4]} 23. Bxd4 {[%clk 0:02:10.4]}
23... Qxd4 {[%clk 0:01:38.6]} 24. Qxd4 {[%clk 0:02:09.3]} 24... exd4 {[%clk
0:01:39.5]} 25. b4 {[%clk 0:02:06.2]} 25... Bg6 {[%clk 0:01:37.3]} 26. f3 {[%clk
0:01:55.4]} 26... f5 {[%clk 0:01:37.5]} 27. Kf2 {[%clk 0:01:50.3]} 27... fxe4
{[%clk 0:01:35.4]} 28. fxe4 {[%clk 0:01:38.1]} 28... Kf7 {[%clk 0:01:33.8]} 29.
Ke2 {[%clk 0:01:38.5]} 29... Ke7 {[%clk 0:01:16.5]} 30. Kd3 {[%clk 0:01:30.6]}
30... Kd7 {[%clk 0:00:58.6]} 31. Kxd4 {[%clk 0:01:29.6]} 31... Kc7 {[%clk
0:00:58.8]} 32. Kc5 {[%clk 0:01:25.5]} 32... Kd7 {[%clk 0:00:55.2]} 33. c3
{[%clk 0:01:24.7]} 33... h5 {[%clk 0:00:51]} 34. h4 {[%clk 0:01:23.9]} 34... Bf7
{[%clk 0:00:50.4]} 35. g3 {[%clk 0:01:20.9]} 35... Be6 {[%clk 0:00:46.1]} 36.
Kb6 {[%clk 0:01:18.6]} 36... Kc8 {[%clk 0:00:43.5]} 37. Nf3 {[%clk 0:01:17.3]}
37... Ba2 {[%clk 0:00:37.3]} 38. Nd4 {[%clk 0:01:12.3]} 38... Bb1 {[%clk
0:00:34.7]} 39. e5 {[%clk 0:01:10.1]} 39... Bh7 {[%clk 0:00:25.6]} 40. Ne6
{[%clk 0:01:09.1]} 40... g6 {[%clk 0:00:22.6]} 41. Nc5 {[%clk 0:01:06.6]} 1-0

[Event "*** Titled Tuesday Blitz"]
[Site "Chess.com"]
[Date "2021.03.30"]
[Round "5"]
[White "Tenamu"]
[Black "nikitakhoroshev"]
[Result "1-0"]
[WhiteElo "2446"]
[BlackElo "2664"]
[TimeControl "180+1"]
[EndTime "10:54:38 PDT"]
[Termination "Tenamu won by resignation"]

1. e4 {[%clk 0:03:00.7]} 1... e5 {[%clk 0:02:56.9]} 2. Nf3 {[%clk 0:03:00.7]}
2... Nc6 {[%clk 0:02:57.2]} 3. Bb5 {[%clk 0:03:01.2]} 3... a6 {[%clk 0:02:56.2]}
4. Ba4 {[%clk 0:03:00.6]} 4... Nf6 {[%clk 0:02:55.7]} 5. O-O {[%clk 0:02:59.6]}
5... b5 {[%clk 0:02:55.8]} 6. Bb3 {[%clk 0:02:59.5]} 6... Bb7 {[%clk 0:02:56.4]}
7. d4 {[%clk 0:02:54]} 7... Nxd4 {[%clk 0:02:55.9]} 8. Nxd4 {[%clk 0:02:50.4]}
8... exd4 {[%clk 0:02:55.2]} 9. e5 {[%clk 0:02:50.1]} 9... Ne4 {[%clk
0:02:55.1]} 10. Re1 {[%clk 0:02:14.4]} 10... Nc5 {[%clk 0:02:33.3]} 11. Qxd4
{[%clk 0:02:11.4]} 11... Ne6 {[%clk 0:02:32.5]} 12. Qg4 {[%clk 0:02:09.6]} 12...
h5 {[%clk 0:02:32]} 13. Qh3 {[%clk 0:02:05.2]} 13... Bc5 {[%clk 0:02:29.3]} 14.
Be3 {[%clk 0:02:01.3]} 14... Qe7 {[%clk 0:02:27.2]} 15. Nc3 {[%clk 0:01:56.5]}
15... Bxe3 {[%clk 0:02:22.3]} 16. Qxe3 {[%clk 0:01:57.4]} 16... Qg5 {[%clk
0:02:16.8]} 17. Qxg5 {[%clk 0:01:45.4]} 17... Nxg5 {[%clk 0:02:17.7]} 18. f4
{[%clk 0:01:39.8]} 18... Ne6 {[%clk 0:02:16.4]} 19. Nd5 {[%clk 0:01:03]} 19...
O-O-O {[%clk 0:02:08.1]} 20. Rad1 {[%clk 0:00:42.8]} 20... Rdf8 {[%clk
0:01:36.9]} 21. Ne7+ {[%clk 0:00:24.6]} 21... Kd8 {[%clk 0:01:36.5]} 22. Bxe6
{[%clk 0:00:23]} 22... Kxe7 {[%clk 0:01:19.8]} 23. Bxd7 {[%clk 0:00:22.1]} 23...
h4 {[%clk 0:01:19.3]} 24. Bh3 {[%clk 0:00:18.5]} 24... Rd8 {[%clk 0:01:18.8]}
25. Kf2 {[%clk 0:00:19]} 25... Be4 {[%clk 0:01:15]} 26. Rxd8 {[%clk 0:00:17]}
26... Rxd8 {[%clk 0:01:14.7]} 27. Rxe4 {[%clk 0:00:17.3]} 27... Rd1 {[%clk
0:01:14.6]} 28. Re1 {[%clk 0:00:17]} 28... Rd2+ {[%clk 0:01:14.6]} 29. Re2
{[%clk 0:00:17.7]} 29... Rd1 {[%clk 0:01:15.1]} 30. f5 {[%clk 0:00:18.6]} 30...
Rb1 {[%clk 0:01:14.8]} 31. a3 {[%clk 0:00:19.2]} 31... Rxb2 {[%clk 0:01:13.9]}
32. e6 {[%clk 0:00:17.9]} 32... Ra2 {[%clk 0:01:12.2]} 33. f6+ {[%clk
0:00:16.2]} 33... gxf6 {[%clk 0:01:10.3]} 34. exf7+ {[%clk 0:00:15.6]} 34... Kf8
{[%clk 0:01:10]} 35. Be6 {[%clk 0:00:14.9]} 35... Rxa3 {[%clk 0:01:09.6]} 36.
Bb3 {[%clk 0:00:14.4]} 36... a5 {[%clk 0:01:06.6]} 37. Re8+ {[%clk 0:00:14.3]}
1-0

[Event "*** Titled Tuesday Blitz"]
[Site "Chess.com"]
[Date "2021.03.30"]
[Round "5"]
[White "Nayemhaque22"]
[Black "Ermito2020"]
[Result "1/2-1/2"]
[WhiteElo "2370"]
[BlackElo "2510"]
[TimeControl "180+1"]
[EndTime "10:54:38 PDT"]
[Termination "Game drawn by repetition"]

1. c4 {[%clk 0:03:00.9]} 1... e5 {[%clk 0:02:59.2]} 2. Nc3 {[%clk 0:03:00.6]}
2... Nf6 {[%clk 0:02:59]} 3. Nf3 {[%clk 0:03:00.5]} 3... Nc6 {[%clk 0:02:58.5]}
4. e3 {[%clk 0:03:00.6]} 4... Bb4 {[%clk 0:02:56.8]} 5. Nd5 {[%clk 0:03:00.4]}
5... e4 {[%clk 0:02:55]} 6. Nxb4 {[%clk 0:02:54.5]} 6... Nxb4 {[%clk 0:02:53.8]}
7. Nd4 {[%clk 0:02:54.5]} 7... O-O {[%clk 0:02:51.6]} 8. b3 {[%clk 0:02:49]}
8... c5 {[%clk 0:02:48.7]} 9. Nb5 {[%clk 0:02:47.2]} 9... d5 {[%clk 0:02:46.5]}
10. cxd5 {[%clk 0:02:43.6]} 10... Nfxd5 {[%clk 0:02:37.9]} 11. a3 {[%clk
0:02:37.8]} 11... Nd3+ {[%clk 0:02:06.5]} 12. Bxd3 {[%clk 0:02:37.3]} 12... exd3
{[%clk 0:02:07.4]} 13. Bb2 {[%clk 0:02:28.7]} 13... a6 {[%clk 0:02:06.5]} 14.
Nc3 {[%clk 0:02:28.7]} 14... Nxc3 {[%clk 0:02:06.1]} 15. Bxc3 {[%clk 0:02:27.5]}
15... Be6 {[%clk 0:02:06.4]} 16. b4 {[%clk 0:02:25.6]} 16... c4 {[%clk 0:02:05]}
17. O-O {[%clk 0:02:24.8]} 17... Bd5 {[%clk 0:02:03.7]} 18. Qg4 {[%clk
0:02:18.4]} 18... f6 {[%clk 0:02:03.3]} 19. e4 {[%clk 0:02:13.7]} 19... Bf7
{[%clk 0:02:02.2]} 20. f4 {[%clk 0:02:13]} 20... Qb6+ {[%clk 0:01:56]} 21. Kh1
{[%clk 0:02:11.6]} 21... Qe6 {[%clk 0:01:56.9]} 22. f5 {[%clk 0:02:07.7]} 22...
Qd6 {[%clk 0:01:52.8]} 23. Rae1 {[%clk 0:01:54.1]} 23... Rfe8 {[%clk 0:01:52.6]}
24. e5 {[%clk 0:01:50.1]} 24... fxe5 {[%clk 0:01:51.9]} 25. Qg3 {[%clk
0:01:49.8]} 25... Qh6 {[%clk 0:01:47.6]} 26. Bxe5 {[%clk 0:01:33.5]} 26... Rxe5
{[%clk 0:01:45.5]} 27. Rxe5 {[%clk 0:01:16.3]} 27... Qxd2 {[%clk 0:01:44.6]} 28.
f6 {[%clk 0:01:16.4]} 28... g6 {[%clk 0:01:43.5]} 29. Re7 {[%clk 0:01:14.7]}
29... Rf8 {[%clk 0:01:41.8]} 30. Rxf7 {[%clk 0:00:36.7]} 30... Rxf7 {[%clk
0:01:39.9]} 31. Qb8+ {[%clk 0:00:36.7]} 31... Rf8 {[%clk 0:01:39.4]} 32. f7+
{[%clk 0:00:35.4]} 32... Kg7 {[%clk 0:01:39.2]} 33. Qe5+ {[%clk 0:00:35.9]}
33... Kh6 {[%clk 0:01:38.8]} 34. Qe7 {[%clk 0:00:33]} 34... Kg7 {[%clk
0:01:21.7]} 35. Qf6+ {[%clk 0:00:27.3]} 35... Kh6 {[%clk 0:01:20.4]} 36. Qe7
{[%clk 0:00:23]} 36... Kg7 {[%clk 0:01:11.4]} 37. Qf6+ {[%clk 0:00:21.8]} 37...
Kh6 {[%clk 0:01:11.1]} 38. Qe7 {[%clk 0:00:20.1]} 1/2-1/2

[Event "*** Titled Tuesday Blitz"]
[Site "Chess.com"]
[Date "2021.03.30"]
[Round "5"]
[White "Leo_C"]
[Black "LastHeroJr"]
[Result "1/2-1/2"]
[WhiteElo "2377"]
[BlackElo "2553"]
[TimeControl "180+1"]
[EndTime "10:54:40 PDT"]
[Termination "Game drawn by repetition"]

1. d4 {[%clk 0:03:00.9]} 1... Nf6 {[%clk 0:02:59.2]} 2. c4 {[%clk 0:03:00.7]}
2... g6 {[%clk 0:02:59.5]} 3. f3 {[%clk 0:03:00.5]} 3... Bg7 {[%clk 0:02:57.2]}
4. e4 {[%clk 0:03:00.3]} 4... O-O {[%clk 0:02:57]} 5. Nc3 {[%clk 0:03:00.2]}
5... d6 {[%clk 0:02:56.7]} 6. Be3 {[%clk 0:02:59.2]} 6... Nc6 {[%clk 0:02:56.7]}
7. Nge2 {[%clk 0:02:58.5]} 7... a6 {[%clk 0:02:57.1]} 8. Qd2 {[%clk 0:02:58.3]}
8... Bd7 {[%clk 0:02:55.3]} 9. h4 {[%clk 0:02:55.5]} 9... Rb8 {[%clk 0:02:31.9]}
10. Nf4 {[%clk 0:02:49.7]} 10... Nxd4 {[%clk 0:02:06]} 11. Bxd4 {[%clk
0:02:44.5]} 11... e5 {[%clk 0:02:05.5]} 12. Be3 {[%clk 0:02:39.3]} 12... exf4
{[%clk 0:02:05.6]} 13. Bxf4 {[%clk 0:02:40.2]} 13... b5 {[%clk 0:02:05.9]} 14.
cxb5 {[%clk 0:02:28.6]} 14... axb5 {[%clk 0:02:06.8]} 15. Bg5 {[%clk 0:02:24.2]}
15... Qe8 {[%clk 0:01:43.9]} 16. Be2 {[%clk 0:02:06.7]} 16... b4 {[%clk
0:01:38.8]} 17. Nd1 {[%clk 0:02:03.9]} 17... Nh5 {[%clk 0:01:32.7]} 18. O-O
{[%clk 0:01:54.8]} 18... Ng3 {[%clk 0:01:23.3]} 19. Re1 {[%clk 0:01:54.7]} 19...
Nxe2+ {[%clk 0:01:04.7]} 20. Rxe2 {[%clk 0:01:55.6]} 20... Qe5 {[%clk
0:00:48.5]} 21. Be3 {[%clk 0:01:26]} 21... Rfe8 {[%clk 0:00:36.9]} 22. Nf2
{[%clk 0:01:15.7]} 22... Qg3 {[%clk 0:00:28.1]} 23. Bf4 {[%clk 0:00:57.3]} 23...
Qxh4 {[%clk 0:00:27.9]} 24. Bg5 {[%clk 0:00:48.7]} 24... Qg3 {[%clk 0:00:24.5]}
25. Bf4 {[%clk 0:00:47.6]} 25... Qh4 {[%clk 0:00:19.3]} 26. Bg5 {[%clk
0:00:44.3]} 26... Qg3 {[%clk 0:00:15]} 27. Bf4 {[%clk 0:00:41.4]} 27... Qh4
{[%clk 0:00:11.7]} 1/2-1/2

[Event "*** Titled Tuesday Blitz"]
[Site "Chess.com"]
[Date "2021.03.30"]
[Round "5"]
[White "noblerone"]
[Black "federicosellitti"]
[Result "0-1"]
[WhiteElo "2395"]
[BlackElo "2548"]
[TimeControl "180+1"]
[EndTime "10:54:41 PDT"]
[Termination "federicosellitti won on time"]

1. d4 {[%clk 0:03:00.9]} 1... d5 {[%clk 0:02:59.6]} 2. Nf3 {[%clk 0:03:01.1]}
2... Nc6 {[%clk 0:02:59.6]} 3. Bg5 {[%clk 0:03:00.7]} 3... h6 {[%clk 0:02:58.7]}
4. Bh4 {[%clk 0:03:00.2]} 4... g5 {[%clk 0:02:59.4]} 5. Bg3 {[%clk 0:03:00.5]}
5... Bg7 {[%clk 0:03:00.1]} 6. c3 {[%clk 0:03:00.9]} 6... Nf6 {[%clk 0:02:59.5]}
7. h3 {[%clk 0:02:57.7]} 7... Ne4 {[%clk 0:02:58.1]} 8. Bh2 {[%clk 0:02:58]}
8... Bf5 {[%clk 0:02:55]} 9. Nbd2 {[%clk 0:02:58.1]} 9... Qd7 {[%clk 0:02:54.4]}
10. e3 {[%clk 0:02:57.4]} 10... O-O-O {[%clk 0:02:45]} 11. Bb5 {[%clk
0:02:56.4]} 11... h5 {[%clk 0:02:33.8]} 12. Nxe4 {[%clk 0:02:23.4]} 12... Bxe4
{[%clk 0:02:34.7]} 13. Nxg5 {[%clk 0:02:12.8]} 13... Bxg2 {[%clk 0:02:21.7]} 14.
Rg1 {[%clk 0:02:12]} 14... f6 {[%clk 0:02:22.1]} 15. Rxg2 {[%clk 0:01:22.4]}
15... fxg5 {[%clk 0:02:21.2]} 16. Qf3 {[%clk 0:00:53.9]} 16... Rdf8 {[%clk
0:02:05.2]} 17. Qg3 {[%clk 0:00:49.4]} 17... a6 {[%clk 0:01:55.8]} 18. Be2
{[%clk 0:00:45.4]} 18... e5 {[%clk 0:01:49]} 19. Qxg5 {[%clk 0:00:36.3]} 19...
Bf6 {[%clk 0:01:40.4]} 20. Qg6 {[%clk 0:00:32.6]} 20... Qxh3 {[%clk 0:01:38.5]}
21. O-O-O {[%clk 0:00:29]} 21... Qe6 {[%clk 0:01:25.9]} 22. Qc2 {[%clk
0:00:15.2]} 22... Kb8 {[%clk 0:01:19.6]} 23. Rdg1 {[%clk 0:00:14.8]} 23... h4
{[%clk 0:01:18.6]} 24. Bg4 {[%clk 0:00:13.9]} 24... Qe8 {[%clk 0:01:16.1]} 25.
Kb1 {[%clk 0:00:13.1]} 25... exd4 {[%clk 0:01:11.5]} 26. cxd4 {[%clk 0:00:13]}
26... h3 {[%clk 0:01:11.2]} 27. Rg3 {[%clk 0:00:13]} 27... Nb4 {[%clk
0:01:08.1]} 28. Qb3 {[%clk 0:00:07.8]} 28... Bh4 {[%clk 0:01:07.9]} 29. Rxh3
{[%clk 0:00:04.7]} 29... Qe4+ {[%clk 0:01:05.2]} 30. Kc1 {[%clk 0:00:05.2]}
30... Bxf2 {[%clk 0:00:53.9]} 0-1

[Event "*** Titled Tuesday Blitz"]
[Site "Chess.com"]
[Date "2021.03.30"]
[Round "5"]
[White "marianokar"]
[Black "zala02"]
[Result "1-0"]
[WhiteElo "2504"]
[BlackElo "2136"]
[TimeControl "180+1"]
[EndTime "10:54:41 PDT"]
[Termination "marianokar won by checkmate"]

1. e4 {[%clk 0:03:00.9]} 1... e5 {[%clk 0:02:58.6]} 2. Nf3 {[%clk 0:03:00.6]}
2... Nc6 {[%clk 0:02:58.5]} 3. Bb5 {[%clk 0:03:01.2]} 3... a6 {[%clk 0:02:57.7]}
4. Ba4 {[%clk 0:03:01.1]} 4... Nf6 {[%clk 0:02:57.5]} 5. O-O {[%clk 0:03:00.7]}
5... Be7 {[%clk 0:02:57.4]} 6. Re1 {[%clk 0:03:00.6]} 6... b5 {[%clk 0:02:56.7]}
7. Bb3 {[%clk 0:03:00.8]} 7... d6 {[%clk 0:02:56.9]} 8. c3 {[%clk 0:03:00.7]}
8... O-O {[%clk 0:02:56.6]} 9. d3 {[%clk 0:03:01.3]} 9... Bb7 {[%clk 0:02:45.8]}
10. Nbd2 {[%clk 0:03:01.2]} 10... Nb8 {[%clk 0:02:44.4]} 11. Nf1 {[%clk
0:03:01]} 11... Nbd7 {[%clk 0:02:44.2]} 12. Ng3 {[%clk 0:03:01.6]} 12... g6
{[%clk 0:02:43.8]} 13. Bh6 {[%clk 0:02:58.4]} 13... Nc5 {[%clk 0:02:30.4]} 14.
Bxf8 {[%clk 0:02:57.1]} 14... Qxf8 {[%clk 0:02:30.7]} 15. Bc2 {[%clk 0:02:50.7]}
15... Rd8 {[%clk 0:02:30.4]} 16. d4 {[%clk 0:02:49.6]} 16... Ncd7 {[%clk
0:02:29.7]} 17. Bb3 {[%clk 0:02:49.1]} 17... Qg7 {[%clk 0:02:22.4]} 18. a4
{[%clk 0:02:45.5]} 18... h5 {[%clk 0:02:19.9]} 19. axb5 {[%clk 0:02:44.1]} 19...
axb5 {[%clk 0:02:19.6]} 20. Ra7 {[%clk 0:02:42.8]} 20... Rb8 {[%clk 0:02:19.1]}
21. dxe5 {[%clk 0:02:34.9]} 21... dxe5 {[%clk 0:02:20]} 22. Ng5 {[%clk
0:02:21.4]} 22... Bc5 {[%clk 0:02:07]} 23. Bxf7+ {[%clk 0:02:14.6]} 23... Kh8
{[%clk 0:02:06.5]} 24. Rxb7 {[%clk 0:02:02.1]} 24... Rxb7 {[%clk 0:02:01]} 25.
Bd5 {[%clk 0:02:02.7]} 25... Rb8 {[%clk 0:01:44.6]} 26. Ne6 {[%clk 0:02:02.5]}
26... Qe7 {[%clk 0:01:40.2]} 27. h3 {[%clk 0:01:52.9]} 27... Bb6 {[%clk
0:01:36.2]} 28. b4 {[%clk 0:01:47.9]} 28... Ra8 {[%clk 0:01:35.9]} 29. Bxa8
{[%clk 0:01:43.8]} 29... Qxe6 {[%clk 0:01:35.8]} 30. Bd5 {[%clk 0:01:39.8]}
30... Qe7 {[%clk 0:01:35.5]} 31. Qf3 {[%clk 0:01:38.7]} 31... Kg7 {[%clk
0:01:33.9]} 32. Nf1 {[%clk 0:01:34.1]} 32... Qd6 {[%clk 0:01:21.5]} 33. Rd1
{[%clk 0:01:29.3]} 33... c6 {[%clk 0:01:16.8]} 34. Bb3 {[%clk 0:01:25.3]} 34...
Qc7 {[%clk 0:01:16]} 35. Ne3 {[%clk 0:01:23.4]} 35... Qa7 {[%clk 0:01:15.2]} 36.
Kh2 {[%clk 0:01:16.5]} 36... Qa3 {[%clk 0:01:14.7]} 37. Be6 {[%clk 0:01:00.1]}
37... Qa7 {[%clk 0:01:13.9]} 38. Rxd7+ {[%clk 0:00:57.6]} 38... Nxd7 {[%clk
0:01:13.5]} 39. Qf7+ {[%clk 0:00:58]} 39... Kh6 {[%clk 0:01:13.1]} 40. Bxd7
{[%clk 0:00:53]} 40... Bxe3 {[%clk 0:01:09.6]} 41. fxe3 {[%clk 0:00:51.8]} 41...
Qxe3 {[%clk 0:01:09.6]} 42. Bxc6 {[%clk 0:00:44.9]} 42... Qxc3 {[%clk
0:01:09.1]} 43. Qf8+ {[%clk 0:00:40.3]} 43... Kg5 {[%clk 0:01:08.3]} 44. h4+
{[%clk 0:00:32.4]} 44... Kxh4 {[%clk 0:01:07.7]} 45. Qf6+ {[%clk 0:00:32.8]}
45... Kg4 {[%clk 0:01:07.3]} 46. Bd7# {[%clk 0:00:32]} 1-0

[Event "*** Titled Tuesday Blitz"]
[Site "Chess.com"]
[Date "2021.03.30"]
[Round "5"]
[White "HeroString"]
[Black "TeukkaSalama"]
[Result "0-1"]
[WhiteElo "2233"]
[BlackElo "2349"]
[TimeControl "180+1"]
[EndTime "10:54:45 PDT"]
[Termination "TeukkaSalama won by resignation"]

1. d4 {[%clk 0:02:56.8]} 1... d5 {[%clk 0:02:59.5]} 2. c4 {[%clk 0:02:56.7]}
2... e6 {[%clk 0:03:00]} 3. Nf3 {[%clk 0:02:57]} 3... Nf6 {[%clk 0:03:00.3]} 4.
g3 {[%clk 0:02:57.5]} 4... dxc4 {[%clk 0:02:58.9]} 5. Bg2 {[%clk 0:02:57.3]}
5... a6 {[%clk 0:02:59.2]} 6. a4 {[%clk 0:02:44.7]} 6... Nc6 {[%clk 0:02:57.6]}
7. O-O {[%clk 0:02:41.4]} 7... Bd7 {[%clk 0:02:54.5]} 8. Na3 {[%clk 0:02:41.4]}
8... Na5 {[%clk 0:02:46.4]} 9. Ne5 {[%clk 0:02:29.9]} 9... Bxa3 {[%clk
0:02:37.9]} 10. Rxa3 {[%clk 0:02:27.4]} 10... O-O {[%clk 0:02:36.5]} 11. Qc2
{[%clk 0:02:18.4]} 11... Bc6 {[%clk 0:01:55.6]} 12. Nxc6 {[%clk 0:02:13]} 12...
Nxc6 {[%clk 0:01:55.7]} 13. Bxc6 {[%clk 0:02:12.7]} 13... bxc6 {[%clk
0:01:55.9]} 14. Qxc4 {[%clk 0:02:12.9]} 14... Qd5 {[%clk 0:01:55.1]} 15. Rc3
{[%clk 0:02:10.5]} 15... Ra7 {[%clk 0:01:28.5]} 16. Qxc6 {[%clk 0:02:02]} 16...
Rb8 {[%clk 0:01:17.6]} 17. Rd1 {[%clk 0:01:47.5]} 17... Rb4 {[%clk 0:01:08.5]}
18. Qc5 {[%clk 0:01:07.2]} 18... Rab7 {[%clk 0:01:04.1]} 19. Bg5 {[%clk
0:00:53.3]} 19... Ne4 {[%clk 0:01:01.2]} 20. Qxd5 {[%clk 0:00:32.1]} 20... exd5
{[%clk 0:01:02.1]} 21. Re3 {[%clk 0:00:28.7]} 21... f6 {[%clk 0:00:53.3]} 22.
Bf4 {[%clk 0:00:27.1]} 22... g5 {[%clk 0:00:52.8]} 23. f3 {[%clk 0:00:15.1]}
23... gxf4 {[%clk 0:00:51.8]} 24. gxf4 {[%clk 0:00:16]} 24... Nd6 {[%clk
0:00:48.2]} 25. Re7 {[%clk 0:00:14.4]} 25... Nf5 {[%clk 0:00:40.3]} 26. Rd7
{[%clk 0:00:10.8]} 26... c6 {[%clk 0:00:40.5]} 27. Kf2 {[%clk 0:00:10.5]} 27...
Rxd7 {[%clk 0:00:40.1]} 0-1

[Event "*** Titled Tuesday Blitz"]
[Site "Chess.com"]
[Date "2021.03.30"]
[Round "5"]
[White "londonkid"]
[Black "Leonid_Starozhilov"]
[Result "0-1"]
[WhiteElo "2509"]
[BlackElo "2712"]
[TimeControl "180+1"]
[EndTime "10:54:51 PDT"]
[Termination "Leonid_Starozhilov won by checkmate"]

1. d4 {[%clk 0:03:00.9]} 1... Nf6 {[%clk 0:02:59.2]} 2. c4 {[%clk 0:03:01.1]}
2... g6 {[%clk 0:02:59.6]} 3. Nc3 {[%clk 0:03:01.5]} 3... Bg7 {[%clk 0:03:00.2]}
4. Nf3 {[%clk 0:03:01]} 4... d6 {[%clk 0:03:00.5]} 5. Bg5 {[%clk 0:03:01.1]}
5... O-O {[%clk 0:02:59.7]} 6. e3 {[%clk 0:03:01.2]} 6... Bf5 {[%clk 0:02:59.4]}
7. Bd3 {[%clk 0:03:00]} 7... Bxd3 {[%clk 0:02:57.9]} 8. Qxd3 {[%clk 0:03:00.9]}
8... Nc6 {[%clk 0:02:58.5]} 9. O-O {[%clk 0:03:00.5]} 9... h6 {[%clk 0:02:56.7]}
10. Bh4 {[%clk 0:03:00.3]} 10... g5 {[%clk 0:02:57.2]} 11. Bg3 {[%clk
0:03:00.4]} 11... Nh5 {[%clk 0:02:57.9]} 12. Nd2 {[%clk 0:02:50.6]} 12... e6
{[%clk 0:02:55.3]} 13. Qe2 {[%clk 0:02:47.9]} 13... Nxg3 {[%clk 0:02:53.1]} 14.
hxg3 {[%clk 0:02:48.8]} 14... f5 {[%clk 0:02:49.2]} 15. d5 {[%clk 0:02:44.4]}
15... exd5 {[%clk 0:02:13.7]} 16. cxd5 {[%clk 0:02:43.2]} 16... Ne5 {[%clk
0:02:08.4]} 17. Nc4 {[%clk 0:02:42.7]} 17... f4 {[%clk 0:01:45.7]} 18. Nxe5
{[%clk 0:02:39.5]} 18... Bxe5 {[%clk 0:01:45.4]} 19. exf4 {[%clk 0:02:31.1]}
19... gxf4 {[%clk 0:01:46.3]} 20. gxf4 {[%clk 0:02:31.4]} 20... Rxf4 {[%clk
0:01:44.5]} 21. Ne4 {[%clk 0:02:24.3]} 21... Qh4 {[%clk 0:01:38]} 22. Ng3 {[%clk
0:02:19.9]} 22... Raf8 {[%clk 0:01:31.4]} 23. Qc2 {[%clk 0:02:09]} 23... Rg4
{[%clk 0:01:28.3]} 24. Rae1 {[%clk 0:01:59.2]} 24... Rxg3 {[%clk 0:01:16.2]} 25.
fxg3 {[%clk 0:01:48.1]} 25... Bd4+ {[%clk 0:01:15.4]} 26. Rf2 {[%clk 0:01:38]}
26... Qxg3 {[%clk 0:01:03.2]} 27. Rf1 {[%clk 0:01:23.4]} 27... Rxf2 {[%clk
0:00:56.7]} 28. Rxf2 {[%clk 0:01:22.3]} 28... Bxf2+ {[%clk 0:00:55.4]} 29. Qxf2
{[%clk 0:01:23.2]} 29... Qxf2+ {[%clk 0:00:54.7]} 30. Kxf2 {[%clk 0:01:24.1]}
30... Kf7 {[%clk 0:00:50.5]} 31. Ke3 {[%clk 0:01:22.1]} 31... Kf6 {[%clk
0:00:44.8]} 32. Ke4 {[%clk 0:01:17]} 32... Kg5 {[%clk 0:00:42.5]} 33. b4 {[%clk
0:01:12.3]} 33... Kg4 {[%clk 0:00:32.2]} 34. a4 {[%clk 0:01:08.4]} 34... Kg3
{[%clk 0:00:31.9]} 35. Kf5 {[%clk 0:01:08.1]} 35... Kxg2 {[%clk 0:00:27.7]} 36.
Kg6 {[%clk 0:01:08.2]} 36... Kf3 {[%clk 0:00:28.2]} 37. Kxh6 {[%clk 0:01:08.8]}
37... Ke4 {[%clk 0:00:28.7]} 38. Kg6 {[%clk 0:01:09.7]} 38... Kxd5 {[%clk
0:00:29.2]} 39. Kf5 {[%clk 0:01:10.4]} 39... Kc4 {[%clk 0:00:29.7]} 40. Ke4
{[%clk 0:01:10.8]} 40... Kxb4 {[%clk 0:00:30.1]} 41. a5 {[%clk 0:01:11.3]} 41...
Kxa5 {[%clk 0:00:30.8]} 42. Kd4 {[%clk 0:01:12.2]} 42... Kb5 {[%clk 0:00:31.3]}
43. Kd3 {[%clk 0:01:12]} 43... Kc6 {[%clk 0:00:32.2]} 44. Kc3 {[%clk 0:01:12.6]}
44... a5 {[%clk 0:00:33.1]} 45. Kc4 {[%clk 0:01:13.4]} 45... b5+ {[%clk
0:00:34]} 46. Kb3 {[%clk 0:01:14.1]} 46... Kb6 {[%clk 0:00:34.9]} 47. Kc3 {[%clk
0:01:14.8]} 47... c5 {[%clk 0:00:35.8]} 48. Kc2 {[%clk 0:01:15.5]} 48... d5
{[%clk 0:00:36.7]} 49. Kb2 {[%clk 0:01:16.4]} 49... a4 {[%clk 0:00:37.6]} 50.
Kc2 {[%clk 0:01:17.3]} 50... b4 {[%clk 0:00:38.5]} 51. Kb2 {[%clk 0:01:17.8]}
51... c4 {[%clk 0:00:39.4]} 52. Ka2 {[%clk 0:01:18.3]} 52... Kc5 {[%clk
0:00:40.3]} 53. Kb2 {[%clk 0:01:19]} 53... d4 {[%clk 0:00:41.2]} 54. Kc2 {[%clk
0:01:19.6]} 54... a3 {[%clk 0:00:42.1]} 55. Kb1 {[%clk 0:01:19.9]} 55... b3
{[%clk 0:00:43]} 56. Kc1 {[%clk 0:01:20.1]} 56... c3 {[%clk 0:00:43.7]} 57. Kb1
{[%clk 0:01:19.8]} 57... Kc4 {[%clk 0:00:44.6]} 58. Ka1 {[%clk 0:01:19.6]} 58...
d3 {[%clk 0:00:45.1]} 59. Kb1 {[%clk 0:01:19.7]} 59... d2 {[%clk 0:00:44.2]} 60.
Ka1 {[%clk 0:01:20.6]} 60... Kd3 {[%clk 0:00:42.3]} 61. Kb1 {[%clk 0:01:20.5]}
61... Ke2 {[%clk 0:00:42.9]} 62. Ka1 {[%clk 0:01:20.6]} 62... Ke1 {[%clk
0:00:42.6]} 63. Kb1 {[%clk 0:01:20.8]} 63... a2+ {[%clk 0:00:40.9]} 64. Ka1
{[%clk 0:01:20.4]} 64... d1=Q# {[%clk 0:00:38.4]} 0-1